[Event "Live Chess"]
[Site "Chess.com"]
[Date "2024.06.01"]
[Round "-"]
[White "Tushinskiy"]
[Black "MagnersCarlsberg2870"]
[Result "1-0"]
[WhiteElo "2223"]
[BlackElo "1765"]
[TimeControl "300"]
[EndTime "15:25:53 PDT"]
[Termination "Tushinskiy won by resignation"]

1. d4 {[%clk 0:04:51.1]} 1... Nf6 {[%clk 0:04:58.3]} 2. c3 {[%clk 0:04:51]} 2...
b6 {[%clk 0:04:56]} 3. Nf3 {[%clk 0:04:50.9]} 3... Bb7 {[%clk 0:04:55]} 4. Bf4
{[%clk 0:04:49.5]} 4... d6 {[%clk 0:04:52.4]} 5. Nbd2 {[%clk 0:04:41.9]} 5... g6
{[%clk 0:04:51.3]} 6. Bg3 {[%clk 0:04:41.8]} 6... Bg7 {[%clk 0:04:50.2]} 7. Qc2
{[%clk 0:04:39.5]} 7... Nbd7 {[%clk 0:04:48.9]} 8. e4 {[%clk 0:04:37.3]} 8...
Nh5 {[%clk 0:04:44.6]} 9. Bb5 {[%clk 0:04:32.1]} 9... Nxg3 {[%clk 0:04:38.5]}
10. hxg3 {[%clk 0:04:32]} 10... a6 {[%clk 0:04:34.9]} 11. Ba4 {[%clk 0:04:29.6]}
11... b5 {[%clk 0:04:33.6]} 12. Bb3 {[%clk 0:04:27.4]} 12... c5 {[%clk
0:04:31.2]} 13. dxc5 {[%clk 0:04:25.7]} 13... Nxc5 {[%clk 0:04:29.8]} 14. Bd5
{[%clk 0:04:22.5]} 14... e6 {[%clk 0:04:23.7]} 15. Bxb7 {[%clk 0:04:16.4]} 15...
Nxb7 {[%clk 0:04:22.2]} 16. O-O {[%clk 0:04:16]} 16... h5 {[%clk 0:04:11.5]} 17.
Rad1 {[%clk 0:04:15.9]} 17... h4 {[%clk 0:04:08.1]} 18. a4 {[%clk 0:04:15.8]}
18... Qb6 {[%clk 0:04:03.7]} 19. gxh4 {[%clk 0:04:15.7]} 19... Rc8 {[%clk
0:03:50.6]} 20. axb5 {[%clk 0:04:15.6]} 20... Qxb5 {[%clk 0:03:46.3]} 21. g3
{[%clk 0:04:08.3]} 21... Bf6 {[%clk 0:03:29.8]} 22. Kg2 {[%clk 0:03:54.4]} 22...
g5 {[%clk 0:03:28.1]} 23. hxg5 {[%clk 0:03:52.9]} 23... Bxg5 {[%clk 0:03:27.1]}
24. Nxg5 {[%clk 0:03:51.8]} 24... Qxg5 {[%clk 0:03:25.7]} 25. Nf3 {[%clk
0:03:51.7]} 25... Qg4 {[%clk 0:03:18.4]} 26. Rh1 {[%clk 0:03:51.6]} 26... Ke7
{[%clk 0:03:13.7]} 27. Qb3 {[%clk 0:03:36.6]} 27... Nc5 {[%clk 0:03:09.7]} 28.
Qb4 {[%clk 0:03:34.4]} 28... Nxe4 {[%clk 0:02:53.8]} 29. Rde1 {[%clk 0:03:07.3]}
29... Rxh1 {[%clk 0:02:46.1]} 30. Rxh1 {[%clk 0:03:05.4]} 30... Rg8 {[%clk
0:02:44.3]} 31. Rh4 {[%clk 0:03:02.6]} 1-0

[Event "Live Chess"]
[Site "Chess.com"]
[Date "2024.06.01"]
[Round "-"]
[White "grillage"]
[Black "Queensandpawns"]
[Result "0-1"]
[WhiteElo "1867"]
[BlackElo "2348"]
[TimeControl "300"]
[EndTime "15:26:14 PDT"]
[Termination "Queensandpawns won by resignation"]

1. d4 {[%clk 0:04:56.9]} 1... e5 {[%clk 0:04:59.9]} 2. dxe5 {[%clk 0:04:54.9]}
2... Nc6 {[%clk 0:04:59.6]} 3. Nf3 {[%clk 0:04:53.9]} 3... Qe7 {[%clk
0:04:59.2]} 4. Nc3 {[%clk 0:04:52.1]} 4... Nxe5 {[%clk 0:04:58]} 5. Nxe5 {[%clk
0:04:51.3]} 5... Qxe5 {[%clk 0:04:57.9]} 6. e4 {[%clk 0:04:50.5]} 6... Nf6
{[%clk 0:04:57.2]} 7. Bd3 {[%clk 0:04:44.3]} 7... Bb4 {[%clk 0:04:56.5]} 8. Bd2
{[%clk 0:04:40]} 8... O-O {[%clk 0:04:55.2]} 9. O-O {[%clk 0:04:38.9]} 9... d5
{[%clk 0:04:51.8]} 10. Nxd5 {[%clk 0:04:34.9]} 10... Nxd5 {[%clk 0:04:49.1]} 11.
exd5 {[%clk 0:04:28.4]} 11... Bd6 {[%clk 0:04:48.5]} 12. g3 {[%clk 0:04:25.6]}
12... Bh3 {[%clk 0:04:46.2]} 13. Re1 {[%clk 0:04:20.9]} 13... Qxd5 {[%clk
0:04:45.5]} 14. Be4 {[%clk 0:04:19.9]} 14... Qc5 {[%clk 0:04:31.2]} 15. Bg2
{[%clk 0:04:16.2]} 15... Bxg2 {[%clk 0:04:29.2]} 16. Kxg2 {[%clk 0:04:15]} 16...
Rad8 {[%clk 0:04:29.1]} 17. Be3 {[%clk 0:03:49.6]} 17... Qc6+ {[%clk 0:04:25.6]}
18. Qf3 {[%clk 0:03:47.9]} 18... Qxc2 {[%clk 0:04:24.7]} 19. Re2 {[%clk
0:03:32.1]} 19... Qg6 {[%clk 0:04:22.4]} 20. Rae1 {[%clk 0:03:25.4]} 20... Rfe8
{[%clk 0:04:21.1]} 21. b3 {[%clk 0:03:18.7]} 21... b6 {[%clk 0:04:20.3]} 22. Bc1
{[%clk 0:03:15.9]} 22... Rxe2 {[%clk 0:04:14]} 23. Qxe2 {[%clk 0:03:15]} 23...
h6 {[%clk 0:04:11.9]} 24. Bb2 {[%clk 0:03:10.2]} 24... Bb4 {[%clk 0:04:06.7]}
25. Rc1 {[%clk 0:03:06.7]} 25... Rd2 {[%clk 0:04:04.5]} 26. Qe8+ {[%clk
0:03:03.3]} 26... Kh7 {[%clk 0:03:57.9]} 27. Bc3 {[%clk 0:02:48.4]} 27... Bxc3
{[%clk 0:03:50.5]} 28. Rxc3 {[%clk 0:02:46.4]} 28... Qf5 {[%clk 0:03:50.4]} 29.
Rf3 {[%clk 0:02:44.4]} 29... Qd5 {[%clk 0:03:45.2]} 30. Qxf7 {[%clk 0:02:40.2]}
30... Qxf7 {[%clk 0:03:44]} 31. Rxf7 {[%clk 0:02:38.6]} 31... Rxa2 {[%clk
0:03:43.9]} 32. Rxc7 {[%clk 0:02:37.8]} 32... Ra3 {[%clk 0:03:41.8]} 33. h4
{[%clk 0:02:34.5]} 33... a5 {[%clk 0:03:38.5]} 34. Rc3 {[%clk 0:02:31.5]} 34...
a4 {[%clk 0:03:38]} 35. Rc4 {[%clk 0:02:20.7]} 35... b5 {[%clk 0:03:33.7]} 36.
Rb4 {[%clk 0:02:18.1]} 36... Rxb3 {[%clk 0:03:32.6]} 0-1

[Event "Live Chess"]
[Site "Chess.com"]
[Date "2024.06.01"]
[Round "-"]
[White "DJ_Lambton"]
[Black "GrahamCuthbert"]
[Result "1-0"]
[WhiteElo "1754"]
[BlackElo "1031"]
[TimeControl "300"]
[EndTime "15:26:22 PDT"]
[Termination "DJ_Lambton won by resignation"]

1. c4 {[%clk 0:04:59]} 1... f5 {[%clk 0:04:57.5]} 2. g3 {[%clk 0:04:58.4]} 2...
Nf6 {[%clk 0:04:56.5]} 3. Bg2 {[%clk 0:04:58]} 3... e6 {[%clk 0:04:54.7]} 4. Nc3
{[%clk 0:04:57.5]} 4... Bc5 {[%clk 0:04:53.8]} 5. e3 {[%clk 0:04:56.9]} 5... O-O
{[%clk 0:04:51.9]} 6. Nge2 {[%clk 0:04:56.6]} 6... Qe8 {[%clk 0:04:49.2]} 7. O-O
{[%clk 0:04:56.2]} 7... c6 {[%clk 0:04:41.4]} 8. b3 {[%clk 0:04:54.7]} 8... Be7
{[%clk 0:04:36.2]} 9. Bb2 {[%clk 0:04:53.2]} 9... Na6 {[%clk 0:04:32.6]} 10. d4
{[%clk 0:04:52.4]} 10... Nb4 {[%clk 0:04:20.1]} 11. a3 {[%clk 0:04:48]} 11...
Na6 {[%clk 0:04:19.1]} 12. Qd2 {[%clk 0:04:46.7]} 12... d5 {[%clk 0:04:09]} 13.
cxd5 {[%clk 0:04:45.3]} 13... cxd5 {[%clk 0:04:08.1]} 14. Nf4 {[%clk 0:04:44.1]}
14... Nc7 {[%clk 0:04:02]} 15. a4 {[%clk 0:04:40.8]} 15... Bb4 {[%clk
0:03:59.9]} 16. Rac1 {[%clk 0:04:36.3]} 16... Nh5 {[%clk 0:03:41.1]} 17. Nxh5
{[%clk 0:04:31.1]} 17... Qxh5 {[%clk 0:03:41]} 18. Qe2 {[%clk 0:04:30]} 18...
Qxe2 {[%clk 0:03:29.8]} 19. Nxe2 {[%clk 0:04:29.9]} 19... Bd7 {[%clk 0:03:20.5]}
20. Bc3 {[%clk 0:04:27.7]} 20... Bxc3 {[%clk 0:03:10.8]} 21. Rxc3 {[%clk
0:04:27.6]} 21... b5 {[%clk 0:03:05.4]} 22. Rxc7 {[%clk 0:04:26.2]} 22... Rfd8
{[%clk 0:03:01.7]} 23. Rfc1 {[%clk 0:04:24.9]} 23... bxa4 {[%clk 0:02:57.1]} 24.
bxa4 {[%clk 0:04:24.8]} 24... a5 {[%clk 0:02:54.4]} 25. Nf4 {[%clk 0:04:23.3]}
25... Rac8 {[%clk 0:02:41]} 26. Rxc8 {[%clk 0:04:19]} 26... Rxc8 {[%clk
0:02:39.7]} 27. Rxc8+ {[%clk 0:04:18.6]} 27... Bxc8 {[%clk 0:02:38.8]} 28. Bf1
{[%clk 0:04:18.3]} 28... Bd7 {[%clk 0:02:35.2]} 29. Bb5 {[%clk 0:04:14]} 29...
Bc8 {[%clk 0:02:26.7]} 30. Kf1 {[%clk 0:04:11.7]} 30... Kf7 {[%clk 0:02:24.9]}
31. Ke2 {[%clk 0:04:10.7]} 31... g5 {[%clk 0:02:23.9]} 32. Nd3 {[%clk
0:04:09.3]} 32... h5 {[%clk 0:02:15.5]} 33. Ne5+ {[%clk 0:04:08]} 33... Ke7
{[%clk 0:02:08]} 34. h4 {[%clk 0:04:06.8]} 34... g4 {[%clk 0:02:03]} 35. f3
{[%clk 0:04:03.9]} 35... Bb7 {[%clk 0:01:32.4]} 36. fxg4 {[%clk 0:03:57.6]}
36... fxg4 {[%clk 0:01:29.9]} 37. Nc6+ {[%clk 0:03:51.2]} 37... Kf6 {[%clk
0:01:25.7]} 38. Kd3 {[%clk 0:03:48.7]} 38... Kf5 {[%clk 0:01:17.2]} 39. Ne5
{[%clk 0:03:47.6]} 39... Bc8 {[%clk 0:01:08.9]} 40. Be8 {[%clk 0:03:45.9]} 40...
Kf6 {[%clk 0:01:04.1]} 41. Bxh5 {[%clk 0:03:44.6]} 41... Bd7 {[%clk 0:01:01.9]}
42. Nxd7+ {[%clk 0:03:43.5]} 1-0

[Event "Live Chess"]
[Site "Chess.com"]
[Date "2024.06.01"]
[Round "-"]
[White "Mangoalo"]
[Black "wadsy27"]
[Result "0-1"]
[WhiteElo "1060"]
[BlackElo "2542"]
[TimeControl "300"]
[EndTime "15:26:39 PDT"]
[Termination "wadsy27 won by resignation"]

1. e4 {[%clk 0:04:51.7]} 1... c6 {[%clk 0:04:59.9]} 2. d4 {[%clk 0:04:49.4]}
2... d5 {[%clk 0:04:59.8]} 3. exd5 {[%clk 0:04:48.4]} 3... cxd5 {[%clk
0:04:59.4]} 4. Bf4 {[%clk 0:04:47.8]} 4... Nf6 {[%clk 0:04:58.8]} 5. Nf3 {[%clk
0:04:46.8]} 5... Nc6 {[%clk 0:04:58.4]} 6. Nc3 {[%clk 0:04:44.8]} 6... Bg4
{[%clk 0:04:58]} 7. Be2 {[%clk 0:04:43.6]} 7... e6 {[%clk 0:04:57.3]} 8. O-O
{[%clk 0:04:41.5]} 8... Bd6 {[%clk 0:04:56.9]} 9. h3 {[%clk 0:04:40.8]} 9... Bh5
{[%clk 0:04:55.7]} 10. Bxd6 {[%clk 0:04:39.2]} 10... Qxd6 {[%clk 0:04:53.4]} 11.
Re1 {[%clk 0:04:35]} 11... O-O {[%clk 0:04:51.4]} 12. Ne5 {[%clk 0:04:33.3]}
12... Bxe2 {[%clk 0:04:50]} 13. Rxe2 {[%clk 0:04:32]} 13... Rfc8 {[%clk
0:04:46.7]} 14. Nxc6 {[%clk 0:04:25.5]} 14... Qxc6 {[%clk 0:04:45.7]} 15. Re3
{[%clk 0:04:21.4]} 15... b5 {[%clk 0:04:44.9]} 16. b4 {[%clk 0:04:19.5]} 16...
a5 {[%clk 0:04:41.2]} 17. bxa5 {[%clk 0:04:18.3]} 17... Rxa5 {[%clk 0:04:39.9]}
18. Rc1 {[%clk 0:04:13.5]} 18... b4 {[%clk 0:04:38.1]} 19. Ne2 {[%clk
0:04:11.9]} 19... Rxa2 {[%clk 0:04:37.2]} 20. Nf4 {[%clk 0:04:10.4]} 20... Rxc2
{[%clk 0:04:29.5]} 21. Rxc2 {[%clk 0:04:08.5]} 21... Qxc2 {[%clk 0:04:28.6]} 22.
Qxc2 {[%clk 0:04:08.4]} 22... Rxc2 {[%clk 0:04:26.8]} 23. Kh2 {[%clk 0:04:06]}
23... Rxf2 {[%clk 0:04:24.2]} 0-1

[Event "Live Chess"]
[Site "Chess.com"]
[Date "2024.06.01"]
[Round "-"]
[White "Zhevzh1k7"]
[Black "degringolade64"]
[Result "0-1"]
[WhiteElo "1107"]
[BlackElo "2115"]
[TimeControl "300"]
[EndTime "15:26:58 PDT"]
[Termination "degringolade64 won by resignation"]

1. e4 {[%clk 0:04:58.4]} 1... e5 {[%clk 0:04:56.7]} 2. Nf3 {[%clk 0:04:56.1]}
2... Nc6 {[%clk 0:04:56.1]} 3. Bc4 {[%clk 0:04:53.6]} 3... Nf6 {[%clk
0:04:54.6]} 4. Nc3 {[%clk 0:04:48.4]} 4... Nxe4 {[%clk 0:04:52.2]} 5. Nxe4
{[%clk 0:04:47]} 5... d5 {[%clk 0:04:50.9]} 6. Bb5 {[%clk 0:04:40.8]} 6... dxe4
{[%clk 0:04:45.9]} 7. Nxe5 {[%clk 0:04:36.8]} 7... Qd5 {[%clk 0:04:34.6]} 8.
Bxc6+ {[%clk 0:04:19.6]} 8... bxc6 {[%clk 0:04:31.9]} 9. Qh5 {[%clk 0:04:11.7]}
9... g6 {[%clk 0:04:25.3]} 10. c4 {[%clk 0:03:59.4]} 10... gxh5 {[%clk
0:04:15.4]} 11. cxd5 {[%clk 0:03:57.6]} 11... cxd5 {[%clk 0:04:15]} 12. Nc6
{[%clk 0:03:47.5]} 12... Bc5 {[%clk 0:04:05.4]} 13. O-O {[%clk 0:03:42.7]} 13...
Rg8 {[%clk 0:04:01.9]} 14. g3 {[%clk 0:03:38.7]} 14... h4 {[%clk 0:03:51]} 15.
b4 {[%clk 0:03:31.3]} 15... Bb6 {[%clk 0:03:47]} 16. Ne5 {[%clk 0:03:23.2]}
16... hxg3 {[%clk 0:03:42.6]} 17. hxg3 {[%clk 0:03:20.4]} 17... Rxg3+ {[%clk
0:03:40.8]} 18. Kh2 {[%clk 0:03:18.9]} 18... Rh3+ {[%clk 0:03:39.1]} 19. Kg2
{[%clk 0:03:17.1]} 19... Rh5 {[%clk 0:03:36.7]} 20. Nc6 {[%clk 0:03:11.1]} 20...
Bh3+ {[%clk 0:03:35]} 21. Kh2 {[%clk 0:03:09.5]} 21... Bxf1+ {[%clk 0:03:33.4]}
22. Kg1 {[%clk 0:03:06.8]} 22... Bb5 {[%clk 0:03:29.8]} 0-1

[Event "Live Chess"]
[Site "Chess.com"]
[Date "2024.06.01"]
[Round "-"]
[White "upoe610"]
[Black "Plato_77"]
[Result "1-0"]
[WhiteElo "2205"]
[BlackElo "1321"]
[TimeControl "300"]
[EndTime "15:27:01 PDT"]
[Termination "upoe610 won by resignation"]

1. c4 {[%clk 0:04:57]} 1... Nf6 {[%clk 0:04:56.2]} 2. g3 {[%clk 0:04:56]} 2...
e6 {[%clk 0:04:54.4]} 3. Bg2 {[%clk 0:04:54.3]} 3... d5 {[%clk 0:04:40.6]} 4.
Nf3 {[%clk 0:04:53.1]} 4... c6 {[%clk 0:04:37.1]} 5. O-O {[%clk 0:04:50.9]} 5...
Bd6 {[%clk 0:04:34.2]} 6. d4 {[%clk 0:04:48.8]} 6... O-O {[%clk 0:04:31.8]} 7.
Nfd2 {[%clk 0:04:47.9]} 7... Re8 {[%clk 0:04:24.3]} 8. Nc3 {[%clk 0:04:46.3]}
8... a5 {[%clk 0:04:17.1]} 9. e4 {[%clk 0:04:45]} 9... dxe4 {[%clk 0:04:13.2]}
10. Ndxe4 {[%clk 0:04:43]} 10... Nxe4 {[%clk 0:04:11.7]} 11. Nxe4 {[%clk
0:04:41.8]} 11... Be7 {[%clk 0:04:10.8]} 12. Bf4 {[%clk 0:04:40.1]} 12... Nd7
{[%clk 0:04:08.9]} 13. Nd6 {[%clk 0:04:38.5]} 13... Bxd6 {[%clk 0:04:04.9]} 14.
Bxd6 {[%clk 0:04:36.9]} 14... Nf6 {[%clk 0:04:02.5]} 15. c5 {[%clk 0:04:36.1]}
15... b6 {[%clk 0:03:59.2]} 16. Bxc6 {[%clk 0:04:30.3]} 16... Bd7 {[%clk
0:03:55.3]} 17. Bxa8 {[%clk 0:04:27.8]} 17... Qxa8 {[%clk 0:03:52.3]} 18. f3
{[%clk 0:04:18.5]} 18... Bb5 {[%clk 0:03:46.2]} 19. Rf2 {[%clk 0:04:14.3]} 19...
bxc5 {[%clk 0:03:44.6]} 20. dxc5 {[%clk 0:04:13.1]} 20... Rd8 {[%clk 0:03:43.4]}
21. a4 {[%clk 0:04:11.5]} 21... Ba6 {[%clk 0:03:37.1]} 22. Qc2 {[%clk
0:04:05.3]} 22... Nd5 {[%clk 0:03:22.5]} 23. Qe4 {[%clk 0:03:57.3]} 23... Bb7
{[%clk 0:03:19.1]} 24. Qg4 {[%clk 0:03:51.9]} 24... Nf6 {[%clk 0:03:16.5]} 25.
Qg5 {[%clk 0:03:48.7]} 25... Bxf3 {[%clk 0:03:08.8]} 26. Be5 {[%clk 0:03:46]}
26... Kh8 {[%clk 0:02:22.1]} 27. Bxf6 {[%clk 0:03:44.3]} 27... gxf6 {[%clk
0:02:22]} 28. Qxf6+ {[%clk 0:03:43.1]} 28... Kg8 {[%clk 0:02:21.2]} 29. Qxf3
{[%clk 0:03:43]} 1-0

[Event "Live Chess"]
[Site "Chess.com"]
[Date "2024.06.01"]
[Round "-"]
[White "f4nomore"]
[Black "NebodarMatevich"]
[Result "1/2-1/2"]
[WhiteElo "1259"]
[BlackElo "1564"]
[TimeControl "300"]
[EndTime "15:27:12 PDT"]
[Termination "Game drawn by repetition"]

1. d4 {[%clk 0:04:55.9]} 1... Nf6 {[%clk 0:04:58.2]} 2. Bg5 {[%clk 0:04:52.2]}
2... g6 {[%clk 0:04:56.7]} 3. Bxf6 {[%clk 0:04:50.1]} 3... exf6 {[%clk
0:04:55.9]} 4. c3 {[%clk 0:04:48.4]} 4... Bg7 {[%clk 0:04:55.3]} 5. Nf3 {[%clk
0:04:46.7]} 5... O-O {[%clk 0:04:54.6]} 6. e3 {[%clk 0:04:45]} 6... d6 {[%clk
0:04:54]} 7. Be2 {[%clk 0:04:43.9]} 7... c5 {[%clk 0:04:52.5]} 8. O-O {[%clk
0:04:41.9]} 8... cxd4 {[%clk 0:04:51.8]} 9. cxd4 {[%clk 0:04:40.8]} 9... Nc6
{[%clk 0:04:51.3]} 10. Nc3 {[%clk 0:04:39.3]} 10... f5 {[%clk 0:04:41.4]} 11. h3
{[%clk 0:04:34.6]} 11... b6 {[%clk 0:04:31]} 12. a3 {[%clk 0:04:32.6]} 12... Bb7
{[%clk 0:04:27.4]} 13. Nh2 {[%clk 0:04:29.2]} 13... Ne7 {[%clk 0:04:21.9]} 14.
Bf3 {[%clk 0:04:27.6]} 14... Bxf3 {[%clk 0:04:15.3]} 15. Qxf3 {[%clk 0:04:24.9]}
15... Rc8 {[%clk 0:04:14.4]} 16. Rac1 {[%clk 0:04:20.9]} 16... Qd7 {[%clk
0:03:57.5]} 17. Nd5 {[%clk 0:04:07.7]} 17... Nxd5 {[%clk 0:03:38.3]} 18. Qxd5
{[%clk 0:04:02.7]} 18... Rxc1 {[%clk 0:03:31.7]} 19. Rxc1 {[%clk 0:03:59.7]}
19... Rc8 {[%clk 0:03:31.6]} 20. Rxc8+ {[%clk 0:03:57]} 20... Qxc8 {[%clk
0:03:30.9]} 21. Qxd6 {[%clk 0:03:50.8]} 21... Qc1+ {[%clk 0:03:28.9]} 22. Nf1
{[%clk 0:03:49.5]} 22... Qxb2 {[%clk 0:03:27.5]} 23. Qb8+ {[%clk 0:03:44.5]}
23... Bf8 {[%clk 0:03:26.3]} 24. Qxa7 {[%clk 0:03:39.2]} 24... Bxa3 {[%clk
0:03:24.2]} 25. Kh2 {[%clk 0:03:27.5]} 25... Qxf2 {[%clk 0:03:11.3]} 26. Ng3
{[%clk 0:03:20.5]} 26... Qxe3 {[%clk 0:03:07.9]} 27. Qxb6 {[%clk 0:03:16.7]}
27... f4 {[%clk 0:02:34.7]} 28. Nf1 {[%clk 0:02:58.5]} 28... Qd3 {[%clk
0:02:26]} 29. Qb8+ {[%clk 0:02:54.9]} 29... Kg7 {[%clk 0:02:25.1]} 30. Qxf4
{[%clk 0:02:52.4]} 30... Bb2 {[%clk 0:02:20.7]} 31. Qe5+ {[%clk 0:02:45.7]}
31... Kg8 {[%clk 0:02:10.8]} 32. Qe8+ {[%clk 0:02:37.3]} 32... Kg7 {[%clk
0:02:10.2]} 33. Qe5+ {[%clk 0:02:35.9]} 33... f6 {[%clk 0:01:58.4]} 34. Qe7+
{[%clk 0:02:32.2]} 34... Kh6 {[%clk 0:01:57.6]} 35. Qf8+ {[%clk 0:02:26.5]}
35... Kg5 {[%clk 0:01:54.7]} 36. Qc5+ {[%clk 0:02:20.5]} 36... f5 {[%clk
0:01:53.5]} 37. Qe7+ {[%clk 0:02:12.6]} 37... Kh6 {[%clk 0:01:52.7]} 38. Qf8+
{[%clk 0:02:11.2]} 38... Kg5 {[%clk 0:01:51.9]} 39. Qe7+ {[%clk 0:02:04.8]}
39... Kh6 {[%clk 0:01:51.1]} 40. Qf8+ {[%clk 0:02:03.2]} 40... Kh5 {[%clk
0:01:47.5]} 41. Ng3+ {[%clk 0:02:00.2]} 41... Kg5 {[%clk 0:01:43.2]} 42. Qe7+
{[%clk 0:01:52.8]} 42... Kh6 {[%clk 0:01:16.1]} 43. Qf8+ {[%clk 0:01:41]} 43...
Kg5 {[%clk 0:01:15.1]} 44. Qd8+ {[%clk 0:01:31.6]} 44... Kh6 {[%clk 0:01:14.1]}
45. Qf8+ {[%clk 0:01:29.9]} 45... Kg5 {[%clk 0:01:12.9]} 1/2-1/2

[Event "Live Chess"]
[Site "Chess.com"]
[Date "2024.06.01"]
[Round "-"]
[White "Crowded_House"]
[Black "blunderabit"]
[Result "1-0"]
[WhiteElo "1735"]
[BlackElo "1777"]
[TimeControl "300"]
[EndTime "15:27:26 PDT"]
[Termination "Crowded_House won by resignation"]

1. d4 {[%clk 0:04:58.9]} 1... d5 {[%clk 0:04:55.4]} 2. Bg5 {[%clk 0:04:58.1]}
2... h6 {[%clk 0:04:47.7]} 3. Bh4 {[%clk 0:04:56.4]} 3... c6 {[%clk 0:04:45.9]}
4. c3 {[%clk 0:04:53.3]} 4... Qb6 {[%clk 0:04:44.5]} 5. Qb3 {[%clk 0:04:50.7]}
5... Nf6 {[%clk 0:04:37.9]} 6. Nd2 {[%clk 0:04:47.4]} 6... Bf5 {[%clk
0:04:33.6]} 7. e3 {[%clk 0:04:40.2]} 7... Nbd7 {[%clk 0:04:31.8]} 8. Ngf3 {[%clk
0:04:38.5]} 8... g5 {[%clk 0:04:16.4]} 9. Bg3 {[%clk 0:04:36.8]} 9... Nh5 {[%clk
0:04:14.8]} 10. Be2 {[%clk 0:04:28]} 10... Nxg3 {[%clk 0:04:11.7]} 11. hxg3
{[%clk 0:04:27.9]} 11... Bg7 {[%clk 0:04:09.8]} 12. O-O {[%clk 0:04:21.1]} 12...
Qc7 {[%clk 0:04:02.9]} 13. Nh2 {[%clk 0:04:17.2]} 13... h5 {[%clk 0:03:58.1]}
14. Bf3 {[%clk 0:04:05.3]} 14... g4 {[%clk 0:03:43.9]} 15. Be2 {[%clk
0:04:03.1]} 15... Nf6 {[%clk 0:03:42.4]} 16. Rfd1 {[%clk 0:03:57.5]} 16... h4
{[%clk 0:03:38.9]} 17. Ndf1 {[%clk 0:03:44.5]} 17... h3 {[%clk 0:03:29.6]} 18.
Bd3 {[%clk 0:03:36.7]} 18... Bxd3 {[%clk 0:03:22.3]} 19. Rxd3 {[%clk 0:03:35]}
19... hxg2 {[%clk 0:03:19.5]} 20. Kxg2 {[%clk 0:03:33]} 20... O-O-O {[%clk
0:03:16.7]} 21. Rad1 {[%clk 0:03:26.3]} 21... Rh5 {[%clk 0:03:09.6]} 22. Re1
{[%clk 0:03:14.5]} 22... Rdh8 {[%clk 0:03:06.7]} 23. Qd1 {[%clk 0:03:09.3]}
23... Qd7 {[%clk 0:03:04.7]} 24. c4 {[%clk 0:02:59.7]} 24... dxc4 {[%clk
0:02:58.9]} 25. Rc3 {[%clk 0:02:58.6]} 25... Qf5 {[%clk 0:02:57]} 26. Rxc4
{[%clk 0:02:45.4]} 26... Qh7 {[%clk 0:02:54.7]} 27. Nxg4 {[%clk 0:02:36.4]}
27... Rh1 {[%clk 0:02:32.8]} 28. Nxf6 {[%clk 0:02:17.2]} 28... Bxf6 {[%clk
0:02:20.7]} 29. Qb1 {[%clk 0:02:14]} 29... Qh3+ {[%clk 0:01:52.6]} 30. Kf3
{[%clk 0:02:10]} 30... Qh5+ {[%clk 0:01:46.7]} 31. Ke4 {[%clk 0:02:03.6]} 31...
Qd5+ {[%clk 0:01:08.9]} 32. Kd3 {[%clk 0:01:59.4]} 32... Rg1 {[%clk 0:00:46.1]}
33. Nd2 {[%clk 0:01:50.8]} 33... Rhh1 {[%clk 0:00:39]} 34. Rxg1 {[%clk 0:01:48]}
1-0

[Event "Live Chess"]
[Site "Chess.com"]
[Date "2024.06.01"]
[Round "-"]
[White "lateforthesky"]
[Black "Cimon"]
[Result "1-0"]
[WhiteElo "2123"]
[BlackElo "1805"]
[TimeControl "300"]
[EndTime "15:27:35 PDT"]
[Termination "lateforthesky won on time"]

1. e4 {[%clk 0:04:55.4]} 1... d6 {[%clk 0:04:58.1]} 2. d4 {[%clk 0:04:53.1]}
2... Nf6 {[%clk 0:04:56.8]} 3. Nc3 {[%clk 0:04:51.3]} 3... g6 {[%clk 0:04:55.6]}
4. f4 {[%clk 0:04:49.2]} 4... Bg7 {[%clk 0:04:54.5]} 5. Bd3 {[%clk 0:04:48.8]}
5... O-O {[%clk 0:04:51.2]} 6. Nf3 {[%clk 0:04:47]} 6... Bg4 {[%clk 0:04:47.2]}
7. O-O {[%clk 0:04:44]} 7... c5 {[%clk 0:04:45.9]} 8. e5 {[%clk 0:04:35.8]} 8...
dxe5 {[%clk 0:04:44]} 9. dxe5 {[%clk 0:04:34]} 9... Nd5 {[%clk 0:04:34.4]} 10.
Be4 {[%clk 0:04:26.5]} 10... Nxc3 {[%clk 0:03:51.3]} 11. bxc3 {[%clk 0:04:26.4]}
11... Qc7 {[%clk 0:03:46.2]} 12. Rb1 {[%clk 0:04:21.3]} 12... Nc6 {[%clk
0:03:34.6]} 13. Qe1 {[%clk 0:04:14.6]} 13... Be6 {[%clk 0:03:17.3]} 14. a3
{[%clk 0:04:10.7]} 14... Bc4 {[%clk 0:03:11.5]} 15. Rf2 {[%clk 0:04:08.3]} 15...
Rad8 {[%clk 0:02:58.3]} 16. Be3 {[%clk 0:04:06.7]} 16... b6 {[%clk 0:02:55.6]}
17. Rd1 {[%clk 0:03:29.8]} 17... Rxd1 {[%clk 0:02:37]} 18. Qxd1 {[%clk
0:03:28.1]} 18... Rd8 {[%clk 0:02:34.2]} 19. Rd2 {[%clk 0:03:26.9]} 19... Rxd2
{[%clk 0:02:18.9]} 20. Qxd2 {[%clk 0:03:24.2]} 20... h6 {[%clk 0:02:07.4]} 21.
f5 {[%clk 0:02:37.5]} 21... Nxe5 {[%clk 0:02:00.2]} 22. fxg6 {[%clk 0:02:34.7]}
22... Nxf3+ {[%clk 0:01:52.8]} 23. gxf3 {[%clk 0:02:29.8]} 23... Qd6 {[%clk
0:01:23.8]} 24. gxf7+ {[%clk 0:02:25.1]} 24... Kxf7 {[%clk 0:01:19.1]} 25. Kg2
{[%clk 0:02:06.5]} 25... Qxd2+ {[%clk 0:01:08]} 26. Bxd2 {[%clk 0:02:05.4]}
26... h5 {[%clk 0:00:51.9]} 27. Kg3 {[%clk 0:01:59.8]} 27... Be5+ {[%clk
0:00:42.9]} 28. f4 {[%clk 0:01:58.6]} 28... Bf6 {[%clk 0:00:41.7]} 29. Bf3
{[%clk 0:01:44.1]} 29... h4+ {[%clk 0:00:39.7]} 30. Kf2 {[%clk 0:01:39.4]} 30...
Be6 {[%clk 0:00:30.5]} 31. Ke3 {[%clk 0:01:37.1]} 31... a5 {[%clk 0:00:26.9]}
32. Be1 {[%clk 0:01:36]} 32... b5 {[%clk 0:00:24.5]} 33. Be4 {[%clk 0:01:32.9]}
33... h3 {[%clk 0:00:22.8]} 34. Bc6 {[%clk 0:01:30.9]} 34... b4 {[%clk
0:00:21.1]} 35. cxb4 {[%clk 0:01:29.8]} 35... cxb4 {[%clk 0:00:19.6]} 36. axb4
{[%clk 0:01:28.5]} 36... axb4 {[%clk 0:00:17.5]} 37. Bxb4 {[%clk 0:01:25.6]}
37... Bc4 {[%clk 0:00:12.2]} 38. Be4 {[%clk 0:01:20.1]} 38... Bh4 {[%clk
0:00:10.7]} 39. Bc3 {[%clk 0:01:03.7]} 39... e6 {[%clk 0:00:09.4]} 40. Be5
{[%clk 0:01:01]} 40... Bd5 {[%clk 0:00:08.1]} 41. Bxd5 {[%clk 0:00:56.5]} 41...
exd5 {[%clk 0:00:06.9]} 42. f5 {[%clk 0:00:51.1]} 42... Bg3 {[%clk 0:00:05.2]}
43. Bxg3 {[%clk 0:00:49.3]} 43... Kf6 {[%clk 0:00:03]} 44. Kf4 {[%clk
0:00:47.8]} 1-0